Cogmind - Beta 13 @@@ ROGUE MODE // 2024.05.15 @ 01:54:51 Player: mrwizrd Result: Destroyed by G-34 Mercenary with Small Laser Performance ------------- Evolutions (1) 500 Regions Visited (3) 600 Robots Destroyed (31) 155 Value Destroyed (680) 680 Prototype IDs (0) 0 Alien Tech Used (0) 0 Bonus (0) 0 TOTAL SCORE: 1935 Bonus ------- None Cogmind --------- Core Integrity 0/400 Matter 256/300 Energy 100/100 System Corruption 0% Temperature Cool (6) Movement Core (50) Location -9/Mines Parts ------- > --- POWER (2) -------- (None) > --- PROPULSION (2) --- (None) > --- UTILITY (3) ------ Structural Scanner Visual Processing Unit > --- WEAPON (2) ------- (None) > --- INVENTORY (5) ---- Improved Aluminum Leg Flight Unit Sensor Drone Bay Peak State ------------ > --- POWER ------------ Ion Engine Light Ion Engine > --- PROPULSION ------- Improved Aluminum Leg Improved Aluminum Leg > --- UTILITY ---------- Structural Scanner Sensor Array Shield Generator > --- WEAPON ----------- Particle Gun Light Cannon > --- INVENTORY -------- Ion Engine Improved Aluminum Leg Improved Aluminum Leg Terrain Scanner Light Assault Rifle [Rating: 13] Favorites ----------- Power Ion Engine Engine Ion Engine Propulsion Improved Aluminum Leg Leg Improved Aluminum Leg Utility Structural Scanner Device Structural Scanner Storage Small Storage Unit Processor Visual Processing Unit Weapon Medium Laser Energy Gun Medium Laser Ballistic Gun Light Assault Rifle Ballistic Cannon Light Cannon Special Weapon Mining Laser Build | -11 -10 -9 -9 ------- Run | Yrd Mat Mat Min Slots Evolved 2 | . . 2 . Power 1 | . . 1 . Propulsion . | . . . . Utility 1 | . . 1 . Weapon . | . . . . Parts Attached 40 | 6 7 15 12 Power 9 | 1 1 4 3 Engine 9 | 1 1 4 3 Core . | . . . . Reactor . | . . . . Propulsion 10 | 2 1 3 4 Treads . | . . . . Leg 10 | 2 1 3 4 Wheel . | . . . . Hover . | . . . . Flight . | . . . . Utility 8 | 1 3 2 2 Device 6 | . 3 2 1 Storage 1 | 1 . . . Processor 1 | . . . 1 Hackware . | . . . . Protection . | . . . . Artifact . | . . . . Weapon 13 | 2 2 6 3 Energy Gun 6 | 1 1 3 1 Energy Cannon . | . . . . Ballistic Gun 5 | 1 . 2 2 Ballistic Cannon 1 | . . 1 . Launcher . | . . . . Special Weapon 1 | . 1 . . Impact Weapon . | . . . . Slashing Weapon . | . . . . Piercing Weapon . | . . . . Special Melee Weapon . | . . . . Unidentified Prototypes . | . . . . Parts Lost 15 | . 2 4 9 Power 3 | . . . 3 Propulsion 3 | . . 1 2 Utility 3 | . . 2 1 Weapon 6 | . 2 1 3 Highest Loss Streak 9 | . 2 2 9 To Critical Strikes 1 | . . 1 . Average Slot Usage (%) 90 | . 78 93 95 Engine 19 | . 14 22 20 Leg 21 | . 28 18 21 Device 24 | . 8 30 21 Storage 2 | . 10 . . Processor 1 | . . . 11 Energy Gun 9 | . 6 10 9 Ballistic Gun 5 | . 3 3 11 Ballistic Cannon 4 | . . 6 . Special Weapon 1 | . 6 . . Naked Turns . | . . . . Heaviest Build 18 | 11 11 18 15 Greatest Support 26 | 20 20 26 26 Greatest Overweight (x) 1 | 1 . 1 . Average Overweight (x) . | . . . . Largest Inventory Capacity 8 | 8 8 5 5 Average Capacity 5 | 7 7 5 5 Most Carried 6 | 2 6 5 5 Average Carried 4 | 1 4 4 3 Final Capacity 8 | 8 5 5 5 Final Carried 5 | 2 5 5 3 Class Distribution -------------------- 89% | Mutant 10% | Skirmisher Dominant Class ---------------- Mutant | -10/Materials Mutant | -9/Materials Mutant | -9/Mines Resources | -11 -10 -9 -9 ----------- Run | Yrd Mat Mat Min Matter Collected 634 | 258 72 264 40 Remotely . | . . . . Salvage Created 890 | . 168 639 83 Parts 56 | . 9 40 7 Haulers Intercepted . | . . . . Recyclers Shooed 2 | . . 2 . Parts Field Recycled . | . . . . Retrieved Matter . | . . . . Parts Self-Destructed . | . . . . Prevented . | . . . . Kills | -11 -10 -9 -9 ------- Run | Yrd Mat Mat Min Combat Hostiles Destroyed 25 | . 4 17 4 Guns 16 | . 1 11 4 Cannons 6 | . . 6 . AOE 3 | . 3 . . Classes Destroyed 7 | . 1 6 . Worker 1 | . . 1 . Builder 2 | . . 2 . Recycler 1 | . . 1 . Watcher 2 | . . 2 . Swarmer 11 | . . 8 3 Grunt 12 | . 4 7 1 Sentry 2 | . . 2 . Best Kill Streak 9 | . 2 9 2 Combat Bots Only 6 | . 2 6 2 Max Kills in Single Turn 2 | . 2 2 1 Gunslinging . | . . . . Exploded 2 | . 2 . . Melee . | . . . . Uniques/NPCs Destroyed . | . . . . Combat | -11 -10 -9 -9 -------- Run | Yrd Mat Mat Min Hostile Shots Fired 203 | . 25 120 58 Missed 57 | . 9 35 13 Damage Taken 1566 | . 198 670 698 Core 426 | . 21 208 197 Absorbed by Shields 182 | . . 182 . Core Remaining (%) 95 | 100 91 . . Volleys Fired 107 | . 19 61 27 Largest 2 | . 1 2 2 Hottest 100 | . 40 100 70 Shots Fired 167 | . 19 107 41 Gun 145 | . 19 85 41 Cannon 22 | . . 22 . Launcher . | . . . . Special . | . . . . Kinetic 88 | . . 61 27 Thermal 60 | . . 46 14 Explosive . | . . . . Electromagnetic 19 | . 19 . . Robot Hit Streak 8 | . 3 8 6 Robot Miss Streak 9 | . 4 9 5 Penetration Max . | . . . . Secondary Targets 2 | . . 2 . Max Gunslinging Chain 1 | . . 1 . Shots Hit Robots 92 | . 11 63 18 Core Hits 48 | . 7 32 9 Critical Kills 1 | . . 1 . Critical Parts Destroyed . | . . . . Critical Strikes 6 | . 1 5 . Burn 3 | . . 3 . Destroy 1 | . . 1 . Blast 1 | . . 1 . Corrupt 1 | . 1 . . Melee Attacks . | . . . . Impact . | . . . . Slashing . | . . . . Piercing . | . . . . Sneak Attacks . | . . . . Combat Hostiles . | . . . . Follow-up Attacks . | . . . . Damage Inflicted 1359 | . 247 910 202 Guns 972 | . 154 632 186 Cannons 278 | . . 278 . Explosions 93 | . 93 . . Melee . | . . . . Ramming 16 | . . . 16 Kinetic 611 | . . 488 123 Thermal 578 | . 93 422 63 Explosive . | . . . . Electromagnetic 154 | . 154 . . Impact . | . . . . Slashing . | . . . . Piercing . | . . . . Highest Corruption . | . . . . Average Corruption . | . . . . Corruption Purged . | . . . . Corruption Blocked . | . . . . Overload Shots . | . . . . Overflow Damage 10 | . 10 . . Projectiles . | . . . . Explosions 10 | . 10 . . Melee . | . . . . Knockbacks 1 | . . 1 . Impact . | . . . . Kinetic 1 | . . 1 . Secondary . | . . . . Self-Inflicted Damage 28 | . 22 . 6 Shots 1 | . 1 . . Rammed 5 | . . . 5 Targets Rammed 5 | . . . 5 Kicked . | . . . . Crushed . | . . . . Highest Temperature 499 | . 54 499 116 Average Temperature 122 | . 15 155 51 Received Heat Transfer 382 | . 96 166 120 Effects 4 | . . 4 . Shutdowns 4 | . . 4 . Siege Activations . | . . . . Robots Corrupted . | . . . . Combat Hostiles . | . . . . Parts Fried . | . . . . Impact Corruptions . | . . . . Robots Melted . | . . . . Combat Hostiles . | . . . . Parts Melted 1 | . . . 1 Heat Transferred 1617 | . 100 1332 185 Parts Sabotaged . | . . . . Parts Stolen . | . . . . Parts Stripped . | . . . . Power Chain Reactions 2 | . 2 . . Alert | -11 -10 -9 -9 ------- Run | Yrd Mat Mat Min Peak Influence 212 | . 60 212 96 Initial 17 | . . 17 11 Average 66 | . 27 88 61 Maximum Alert Level 1 | . . 1 . Low Security (%) 95 | 100 100 92 100 Level 1 4 | . . 7 . Level 2 . | . . . . Level 3 . | . . . . Level 4 . | . . . . Level 5 . | . . . . High Security . | . . . . Max Security . | . . . . Squads Dispatched 2 | . 1 1 . Investigation . | . . . . Extermination . | . . . . Reinforcement 2 | . 1 1 . Assault . | . . . . Garrison . | . . . . Intercept . | . . . . Searches Triggered . | . . . . Construction Impeded . | . . . . Haulers Reinforced . | . . . . Active Scanning Responses . | . . . . Cargo Convoy Interrupts . | . . . . Stealth | -11 -10 -9 -9 --------- Run | Yrd Mat Mat Min Distress Signals 4 | . . 4 . Communications Jammed . | . . . . Distress Signals . | . . . . Times Spotted 39 | . 5 27 7 Peak Tracking Total 6 | . 3 6 3 Tactical Retreats 2 | . 1 . 1 Traps | -11 -10 -9 -9 ------- Run | Yrd Mat Mat Min Traps Triggered 2 | . . 2 . Indirectly . | . . . . Trap Hack Attempts . | . . . . Triggered . | . . . . Disarmed . | . . . . Reprogrammed . | . . . . Reused . | . . . . Traps Extracted . | . . . . Installed . | . . . . Triggered . | . . . . Machines | -11 -10 -9 -9 ---------- Run | Yrd Mat Mat Min Machines Disabled 1 | . . 1 . Max in Single Turn 1 | . . 1 . Machines Repaired . | . . . . Machines Dismantled . | . . . . Machines Sabotaged . | . . . . Overloaded Fab Kills . | . . . . Hacking | -11 -10 -9 -9 --------- Run | Yrd Mat Mat Min Machines Accessed 4 | . 1 2 1 Terminals 3 | . 1 2 . Fabricators . | . . . . Repair Stations . | . . . . Recycling Units . | . . . . Scanalyzers . | . . . . Garrison Access . | . . . . Total Hacks 6 | . 1 4 1 Successful 4 | . 1 2 1 Failed 2 | . . 2 . Catastrophic . | . . . . Database Lockouts . | . . . . Manual 4 | . 1 3 . Terminals 5 | . 1 4 . Fabricators . | . . . . Repair Stations . | . . . . Recycling Units . | . . . . Scanalyzers . | . . . . Garrison Access . | . . . . Terminal Hacks 4 | . 1 2 1 Open Door 1 | . . . 1 Unreport Threat 2 | . 1 1 . Zone Layout 1 | . . 1 . Fabricator Hacks . | . . . . Repair Station Hacks . | . . . . Recycling Unit Hacks . | . . . . Scanalyzer . | . . . . Garrison Access Hacks . | . . . . Unauthorized Hacks . | . . . . Terminals . | . . . . Fabricators . | . . . . Repair Stations . | . . . . Recycling Units . | . . . . Scanalyzers . | . . . . Garrison Access . | . . . . Data Cores Recovered . | . . . . Used . | . . . . Hacking Detections . | . . . . Full Trace Events . | . . . . Feedback Events . | . . . . Feedback Blocked . | . . . . Robot Schematics Acquired . | . . . . Robots Built . | . . . . Authchips . | . . . . Time . | . . . . Total Robot Build Rating . | . . . . Part Schematics Acquired . | . . . . Parts Built . | . . . . Authchips . | . . . . Time . | . . . . Total Part Build Rating . | . . . . Parts Repaired . | . . . . Time . | . . . . Parts Recycled . | . . . . Recycled Matter . | . . . . Retrieved Matter . | . . . . Retrieved Components . | . . . . Parts Scanalyzed . | . . . . Part Schematics Acquired . | . . . . Parts Damaged . | . . . . Bothacking | -11 -10 -9 -9 ------------ Run | Yrd Mat Mat Min Used RIF Installer . | . . . . Robots Hacked . | . . . . Non-combat . | . . . . Combat . | . . . . Robot Hacks Applied . | . . . . Relay Couplers Released . | . . . . Fabnet Peak Effective % . | . . . . Robots Rewired . | . . . . Allies Hacked . | . . . . Hacks Repelled . | . . . . Allies | -11 -10 -9 -9 -------- Run | Yrd Mat Mat Min Total Allies . | . . . . Largest Group . | . . . . Highest-Rated Group . | . . . . Highest-Rated Ally . | . . . . Total Orders . | . . . . Ally Attacks . | . . . . Total Damage . | . . . . Kills . | . . . . Allies Corrupted . | . . . . Allies Melted . | . . . . Intel | -11 -10 -9 -9 ------- Run | Yrd Mat Mat Min Robot Analysis Total . | . . . . Derelict Logs Recovered . | . . . . Drone Launches . | . . . . Drone Recoveries . | . . . . Exploration | -11 -10 -9 -9 ------------- Run | Yrd Mat Mat Min Turns Passed 1546 | 86 313 892 255 Spaces Moved 778 | 59 217 362 140 Core 3 | 3 . . . Treads . | . . . . Legs 775 | 56 217 362 140 Wheels . | . . . . Hover . | . . . . Flight . | . . . . Fastest Speed 50 | 50 120 120 120 Average Speed 128 | 128 120 137 120 Slowest Speed 190 | 190 120 190 120 Overloaded Moves . | . . . . Propulsion Burnouts . | . . . . Robots Hopped . | . . . . Cave-ins Triggered . | . . . . Exploration Rate (%) 26 | 4 30 34 39 Regions Visited 3 Branch Regions 1 Pre-discovered Areas . | . . . . Known Exits Taken . | . . . . Unknown Exits Taken 3 | 1 1 1 . Scrap Searched . | . . . . Spaces Dug . | . . . . Terrain Destroyed 7 | . 7 . . Melee . | . . . . Projectile . | . . . . AOE 7 | . 7 . . Terrain Rammed . | . . . . Walls Destroyed . | . . . . Machines Disabled . | . . . . Actions | -11 -10 -9 -9 --------- Run | Yrd Mat Mat Min Total 1157 | 66 248 654 189 Wait 205 | . . 205 . Move 775 | 58 216 361 140 Hop . | . . . . Pick Up 15 | 2 3 6 4 Fast Attach 12 | 6 2 4 . Attach 11 | . . 5 6 Detach . | . . . . Swap 17 | . 5 6 6 Drop 10 | . 3 6 1 Fire 107 | . 19 61 27 Melee . | . . . . Ram 5 | . . . 5 Kick . | . . . . Crush . | . . . . Escape Stasis . | . . . . Rewire . | . . . . Trap . | . . . . Miscellaneous . | . . . . Route ------- -11/Scrapyard -10/Materials -9/Materials -9/Mines History --------- Turn | Location | Event 21 | -11/Scrapyard | Discovered new exit (range 16) 87 | -11/Scrapyard | Entered Materials 354 | -10/Materials | Build established: Mutant 358 | -10/Materials | Discovered new exit (range 11) 400 | -10/Materials | Entered another Materials area 400 | -9/Materials | Evolved 2 slots: Power x1, Utility x1 1282 | -9/Materials | Discovered new exit (range 7) 1292 | -9/Materials | Core integrity fell below 50% 1292 | -9/Materials | Entered Mines 1464 | -9/Mines | Found the Drone Emporium 1476 | -9/Mines | Found Prototype Device 1539 | -9/Mines | Core integrity fell below 20% 1547 | -9/Mines | Destroyed by G-34 Mercenary with Small Laser Last Messages --------------- Acquired Prototype Device. Ion Engine destroyed. Lgt. Ion Engine destroyed. Med. Laser destroyed. G-34 Mercenary destroyed. Lgt. Assault Rifle destroyed. Imp. Aluminum Leg destroyed. Terrain Scanner destroyed. R-06 Scavenger collects Sml. Laser. Imp. Aluminum Leg destroyed. R-06 Scavenger collects Aluminum Leg. Lgt. Assault Rifle destroyed. Slammed into L-31 Rogue. Ion Engine broken. Destabilizing: Short circuit. Slammed into G-34 Mercenary. Broken Ion Engine destroyed. Slammed into L-31 Rogue. Destabilizing: System interference. Visual Processing Unit temporarily disabled. Map ----- +----------------------------------------------------+ | ????????????????## #### ##???????????????? | | ????????????????### ## ##???????????????? | | ?????#####??????#### ##???????????????? | | ?#???#####???????### ##???????????????? | | ?????## ????#?#### ##???????????????? | | ####### ##?????#### ##### ###???????????????? | | ####### ########## ############???????????????? | | = ### ######### #####???####????????????????? | | ### ### #### #####????????????????????????? | | ### ### #### #### ####??????????????????????????? | | ?## ##############??????????????????????? | | ?########### ###############?????????????????????? | | ?########### ##??????## ####????????????????????? | | ??????????## ##??????# ###????????????????????? | | ####??????## ##???#??? ##????????????????????? | | #####?????## ##?#????# ##????????????????????? | | ########## ##?????### ###???????????????????? | | ######### ##?????### ###???? ??????????????? | | ##""""### ##?????## ##???""??????????????? | | #" ="## ##??#?### ### """??????????????? | | #" "## ##???#### #### """ ?????????????? | | ## ### ######## $ ?????????????? | | ### #### ####### ???????????????? | | ## X u r t ##???????????????????? | | #### r #############????????? | | #### ####### g @ #############????????? | | # ######### l ??????? | | ####???##### $ ??????? | | ####??#??######################????????? | | ########????????## ###############????????? | | ########?????????????????????#???????????????? | | ###?????#???#???????????????#????????????????? | | ##?? ????????#??????????????#???????????????? | | # ##???????#????? ??????????????????????? | | ### ##?? ?????????????????????????????????? | | ### ### ###????????????????????????????????????? | | ?## ########??????????????? ????????????????????? | | ?## ##?####????????????? ???????????????????????? | | ?## ##??????????????????????????????????????????? | | ?## ##??????????????????????????????????????????? | | ?## ##??????????????????????????????????????????? | | ??? ##??????????????????????????????????????????? | | ??? ##??????????????????????????????????????????? | | ??? ??????????????????????????????????????????? | | ?? ???????????????????????????????????????????? | | ??? ???????????????????????????????????????????? | | ??? ???????????????????????????????????????????? | | ??? ???????????????????????????????????????????? | | ?????????????????????????????????????????????????? | | ?????????????????????????????????????????????????? | +----------------------------------------------------+ Best States ------------- Heat Dissipation 28 Energy Generation 15 Energy Capacity 400 Matter Stores 300 Matter Capacity 300 Sight Range 18 Robot Scan Range 14 Terrain Scan Range 14 Terrain Scan Density 10 Evasion (%) 55 Item Schematics ----------------- None Robot Schematics ------------------ None Fabricated ------------ Nothing Alien Tech Used ----------------- None Achievements -------------- None Challenges ------------ None Game ------ Seed LightBombardmentCleaver Manual? 0 Play Time 00:27:53 Cumulative 15.1 hours Start 2024.05.15 @ 01:28:18 End 2024.05.15 @ 01:54:51 Sessions 1 Manual Loads 0 Difficulty Rogue Special Mode None Game No. 17 Rogue 17 Adventurer 0 Explorer 0 Win Type - Total 0 Types 0/0/0/0/0/0/0/0/0 Lore% 10 Gallery% 12 Achievement% 11 Wizard Run 0 Options --------- Layout 0 ASCII 0 Keyboard 1 Movement Arrows Keybinds 0 Fullscreen 2 Font 24/X11 Map View 76x50 Zoom Use 0% Tactical HUD 0 Map Filters NONE Filters NONE Steam 1 RUN: 48eb3b3e-b21b-46fa-98a0-7a7852fffd7f